bitfinex-derivatives/quotes_ETHF0:USTF0_20241104
["timestamp","ask_amount","ask_price","bid_price","bid_amount"]
[1730731144242,0.4078,2453.5,2453.4,0.40782]
[1730731144440,0.4078,2453.5,2453.4,0.97166287]
[1730731144946,0.4489,2453.8,2453.4,0.56384287]
[1730731145249,0.4489,2453.8,2453.2,1.06494036]
[1730731145250,0.4489,2453.8,2453.5,0.56384287]
[1730731145543,0.4489,2453.8,2453.7,0.40777]
[1730731145843,0.40766,2454.4,2454.3,0.40767]
[1730731146035,3.2078,2454.5,2453.7,2.53085006]
[1730731146036,3.2078,2454.5,2454.4,0.40765]
[1730731146236,0.4389,2454.7,2454.0,4.24677383]
[1730731146446,0.84651,2454.7,2454.6,0.40762]
[1730731146749,0.4389,2454.7,2454.2,1.0192]
[1730731147042,0.4389,2454.7,2454.3,0.56361786]
[1730731147239,0.4389,2454.7,2454.4,0.56361786]
[1730731147433,3.61534,2455.1,2454.5,1.58262226]
[1730731147632,0.40756,2455.0,2454.6,4.23292082]
[1730731147842,0.4076,2454.7,2454.6,0.40761]
[1730731148032,41.2076,2454.7,2454.6,0.40761]
[1730731148237,40.8,2454.7,2454.6,0.97113017]
[1730731148437,3.2078,2455.1,2454.6,5.04473017]
[1730731148637,3.2078,2455.1,2455.0,0.40755]
[1730731149034,40.8,2455.1,2455.0,8.22622434]
[1730731149233,3.2078,2456.0,2455.2,0.40752]
[1730731149540,6.01316169,2456.4,2456.1,0.40736]
[1730731149541,0.40734,2456.3,2456.1,0.40736]
[1730731149741,3.2078,2456.4,2455.8,0.40741]
[1730731149742,0.40737,2456.1,2455.8,0.40741]
[1730731150042,0.40739,2456.0,2455.8,0.40741]
[1730731150250,40.8,2456.2,2455.9,0.40739]
[1730731150251,41.20736,2456.2,2455.9,0.40739]
[1730731150441,41.20736,2456.2,2455.8,0.40741]
[1730731150442,40.8,2456.2,2455.8,0.40741]
[1730731150944,40.8,2456.2,2455.3,4.71774556]
[1730731150945,3.91233306,2455.9,2455.3,4.71774556]
[1730731151145,0.40748,2455.4,2455.3,3.2078]
[1730731151843,4.0728,2455.4,2454.8,0.421]
[1730731152041,3.2078,2455.1,2454.8,0.421]
[1730731152250,3.2078,2455.1,2454.7,0.4076]
[1730731152251,0.40757,2454.9,2454.7,0.4076]
[1730731152447,0.4076,2454.8,2454.5,0.40762]
[1730731152941,0.40756,2455.0,2454.7,0.40759]
[1730731153139,3.2078,2455.1,2454.5,0.40763]
[1730731153341,3.2078,2455.1,2454.4,0.421]
[1730731153342,0.40763,2454.6,2454.4,0.421]
[1730731153552,8.13900306,2455.1,2454.4,0.421]
[1730731153553,3.2078,2454.8,2454.4,0.421]
[1730731153745,0.40761,2454.7,2454.4,0.82864]
[1730731153946,0.40762,2454.6,2454.4,0.421]
[1730731154141,0.40761,2454.7,2454.4,0.82864]
[1730731154351,3.2078,2454.8,2454.1,5.2558]
[1730731154555,0.40763,2454.6,2454.3,0.40766]
[1730731154853,3.2078,2454.8,2454.3,0.40766]
[1730731155052,0.40765,2454.4,2454.2,0.86397]
[1730731155254,40.8,2454.3,2454.2,0.4563]
[1730731155456,40.8,2454.3,2454.2,0.86398]
[1730731155646,40.8,2454.3,2454.2,4.93838]
[1730731156448,40.8,2454.3,2454.1,3.2078]
[1730731156643,40.8,2454.3,2454.2,0.40768]
[1730731156971,41.20767,2454.3,2454.1,3.2078]
[1730731157345,40.8,2454.3,2454.1,3.2078]
[1730731157551,0.40768,2454.2,2454.1,3.2078]
[1730731157747,40.8,2454.3,2454.1,3.2078]
[1730731157748,41.20768,2454.3,2454.1,3.2078]
[1730731158054,0.40768,2454.2,2454.1,3.2078]
[1730731158248,40.8,2454.3,2454.1,3.2078]
[1730731158553,0.40768,2454.2,2454.1,3.2078]
[1730731159055,4.48208,2454.2,2454.1,3.2078]
[1730731159246,4.48208,2454.2,2453.8,0.4476]
[1730731159247,0.40773,2453.9,2453.8,0.4476]
[1730731159446,3.61553,2453.9,2453.8,0.4476]
[1730731159643,0.40777,2453.7,2453.2,14.46634556]
[1730731159857,0.40777,2453.7,2453.4,0.4078]
[1730731160147,0.40776,2453.8,2453.5,0.40779]
[1730731160354,0.40777,2453.7,2453.5,0.40779]
[1730731160741,0.40779,2453.6,2453.4,0.40782]
[1730731160947,0.40776,2453.8,2453.6,0.40778]
[1730731161153,0.40776,2453.8,2453.5,0.40779]
[1730731161356,0.4541,2454.1,2453.3,0.4225]
[1730731161557,3.2078,2453.9,2453.3,0.83033]
[1730731161744,3.2078,2453.9,2453.6,0.40778]
[1730731161940,3.2078,2453.9,2453.5,0.40779]
[1730731161941,0.40777,2453.8,2453.5,0.40779]
[1730731162153,0.40777,2453.7,2453.5,0.40779]
[1730731162354,0.40776,2453.8,2453.6,0.40778]
[1730731162553,0.40777,2453.7,2453.5,0.40779]
[1730731162749,3.2078,2453.9,2453.4,0.40781]
[1730731162956,0.40777,2453.8,2453.5,0.40779]
[1730731163158,4.22717,2453.9,2453.3,0.4225]
[1730731163349,4.22717,2453.9,2453.2,3.2078]
[1730731163350,0.40783,2453.3,2453.2,3.2078]
[1730731163551,4.68495,2453.7,2452.8,1.06454556]
[1730731163750,4.68495,2453.7,2452.9,0.5657096]
[1730731163751,3.2078,2453.3,2452.9,0.5657096]
[1730731163946,0.40791,2452.9,2452.7,0.87023]
[1730731164258,40.8,2452.8,2452.7,0.4623]
[1730731164447,40.8,2452.8,2452.7,1.43594792]
[1730731164644,40.8,2452.8,2452.7,4.94703]
[1730731164950,40.8,2452.8,2452.7,5.51265498]
[1730731165158,0.40788,2453.1,2452.9,0.4079]
[1730731165544,40.8,2453.0,2452.9,0.4079]
[1730731165749,41.20788,2453.0,2452.9,0.4079]
[1730731165950,40.8,2453.0,2452.9,0.4079]
[1730731167557,3.2078,2453.3,2453.2,0.40785]
[1730731167756,0.40782,2453.4,2453.2,0.40785]
[1730731167956,3.2078,2453.5,2453.2,0.40785]
[1730731168250,3.2078,2453.5,2452.8,0.40792]
[1730731168251,40.8,2453.4,2452.8,0.40792]
[1730731168458,0.40789,2453.0,2452.8,0.40791]
[1730731168860,3.2078,2453.2,2452.5,0.40795]
[1730731168861,0.40792,2452.8,2452.5,0.40795]
[1730731169052,0.40793,2452.8,2452.6,0.40795]
[1730731169251,0.40793,2452.7,2452.5,0.40796]
[1730731169453,0.40792,2452.8,2452.4,3.61577]
[1730731169761,0.4216,2452.9,2452.4,3.2078]
[1730731169951,0.40792,2452.8,2452.7,0.40793]
[1730731170153,0.4216,2452.9,2452.4,3.2078]
[1730731170459,0.8295,2452.9,2452.7,0.40792]
[1730731170659,0.4216,2452.9,2452.8,0.40792]
[1730731170856,0.82951,2452.9,2452.5,0.4494]
[1730731171051,0.82951,2452.9,2452.7,0.40793]
[1730731171358,0.82951,2452.9,2452.8,0.40792]
[1730731171863,0.4216,2452.9,2452.8,0.40792]
[1730731172060,0.40788,2453.1,2452.8,4.0768]
[1730731172249,0.40788,2453.0,2452.9,0.40789]
[1730731172453,0.4514,2453.3,2452.9,0.40789]
[1730731172650,0.40789,2453.0,2452.8,0.4079]
[1730731172863,0.40789,2453.0,2452.5,4.36173306]
[1730731173060,3.2078,2453.2,2452.5,4.36173306]
[1730731173259,3.2078,2453.2,2452.5,0.4494]
[1730731173463,3.2078,2453.2,2452.7,0.40792]
[1730731173753,0.40793,2452.7,2452.6,0.40794]
[1730731173964,3.2078,2453.2,2452.7,0.40792]
[1730731173965,0.40791,2452.9,2452.7,0.40792]
[1730731174258,4.22745,2453.2,2452.5,0.4494]
[1730731174558,4.22745,2453.2,2452.6,0.40794]
[1730731174559,0.40793,2452.8,2452.6,0.40794]
[1730731174760,0.40794,2452.7,2452.5,0.4494]
[1730731174958,3.2078,2453.1,2452.5,4.36173306]
[1730731175457,0.40788,2453.0,2452.9,0.4079]
[1730731175853,0.40788,2453.0,2452.5,5.38164306]
[1730731175854,0.4514,2453.3,2452.5,0.4494]
[1730731176054,3.2078,2453.1,2452.5,0.4494]
[1730731176250,3.2078,2453.1,2452.6,1.01988]
[1730731176463,0.40787,2453.1,2453.0,0.40788]
[1730731176762,0.4514,2453.3,2452.6,1.01988]
[1730731176955,0.40789,2453.0,2452.9,0.40789]
[1730731177161,0.40787,2453.1,2452.7,1.01984]
[1730731177355,0.40789,2453.0,2452.6,1.01988]
[1730731177562,0.40789,2453.0,2452.9,0.40789]
[1730731177955,3.2078,2453.1,2452.5,0.4494]
[1730731177956,3.2078,2453.1,2453.0,0.10438538]
[1730731178162,1.4276,2453.0,2452.2,0.408]
[1730731178358,1.4276,2453.0,2451.9,3.6451]
[1730731178359,3.2078,2452.6,2451.9,3.6451]
[1730731178566,0.40798,2452.5,2452.4,0.40798]
[1730731178762,0.40799,2452.4,2452.3,0.40799]
[1730731179071,41.20799,2452.4,2452.3,0.40799]
[1730731179262,40.8,2452.4,2452.3,0.40799]
[1730731180355,15.21486,2453.7,2452.4,0.40797]
[1730731180356,0.40797,2452.5,2452.4,0.40797]
[1730731181163,0.40797,2452.5,2452.1,1.02008]
[1730731181164,0.40795,2452.6,2452.5,0.40795]
[1730731182466,0.40796,2452.6,2452.5,0.40796]
[1730731182868,40.8,2452.8,2452.2,3.91233306]
[1730731183060,40.8,2452.8,2451.9,0.4373]
[1730731183262,0.408,2452.4,2452.3,0.40799]
[1730731183456,0.408,2452.4,2451.9,1.45746]
[1730731183457,0.40803,2452.2,2452.1,0.40803]
[1730731183761,0.40808,2451.9,2451.8,0.40807]
[1730731183961,0.4493,2452.1,2451.5,0.4217]
[1730731184363,0.4493,2452.1,2451.7,0.40809]
[1730731184575,0.4493,2452.1,2451.5,0.4217]
[1730731184576,3.2078,2451.9,2451.5,0.4217]
[1730731184775,0.40812,2451.6,2451.5,0.40813]
[1730731184966,0.40811,2451.7,2451.2,1.44216]
[1730731185165,0.40811,2451.7,2451.5,0.40812]
[1730731185468,3.2078,2451.9,2451.4,0.40814]
[1730731185469,0.40812,2451.6,2451.4,0.40814]
[1730731185669,0.40813,2451.6,2451.2,0.4217]
[1730731185868,0.4081,2451.7,2451.6,0.40811]
[1730731186373,0.4081,2451.7,2451.5,0.40812]
[1730731186666,0.40809,2451.8,2451.6,0.40812]
[1730731186866,3.2078,2451.9,2451.2,3.6295]
[1730731187059,3.2078,2451.9,2451.3,3.2078]
[1730731187264,0.40809,2451.8,2451.3,1.0204]
[1730731187464,0.40809,2451.8,2451.6,0.40811]
[1730731187665,3.61588,2451.9,2451.7,0.4081]
[1730731187966,3.61588,2451.9,2451.8,0.40808]
[1730731187967,3.61587,2451.9,2451.8,0.40808]
[1730731188167,3.2078,2451.9,2451.8,0.40808]
[1730731189170,0.4493,2452.1,2452.0,0.40805]
[1730731189472,3.2078,2452.2,2452.1,0.40803]
[1730731189670,0.40799,2452.4,2452.3,0.40799]
[1730731190071,3.6671,2452.6,2452.0,1.02012]
[1730731190268,4.07506,2452.6,2452.5,0.40797]
[1730731190466,3.6671,2452.6,2452.1,1.02008]
[1730731190760,3.6671,2452.6,2452.0,1.02012]
[1730731190962,4.07506,2452.6,2452.5,0.40797]
[1730731191171,4.07505,2452.6,2452.5,0.40797]
[1730731191469,0.40798,2452.5,2452.4,0.40798]
[1730731192277,3.6671,2452.6,2452.5,0.40797]
[1730731192667,4.07505,2452.6,2452.5,0.40797]
[1730731193173,0.40797,2452.5,2452.4,0.40797]
[1730731193365,4.07505,2452.6,2452.5,0.40797]
[1730731194672,4.07505,2452.6,2452.1,4.22787]
[1730731194673,3.6671,2452.6,2452.1,1.02007]
[1730731194970,3.6671,2452.6,2452.5,0.40797]
[1730731195172,4.07505,2452.6,2452.5,0.40797]
[1730731195976,3.2078,2452.6,2452.5,0.40797]
[1730731196272,3.61575,2452.6,2452.5,0.40797]
[1730731196766,0.8661,2452.9,2452.6,0.40793]
[1730731196767,0.40794,2452.7,2452.6,0.40793]
[1730731197465,0.40795,2452.7,2452.6,0.40794]
[1730731198461,3.2078,2452.8,2452.7,0.40793]
[1730731198663,3.61572,2452.8,2452.7,0.40793]
[1730731198862,0.40796,2452.6,2452.5,0.40795]
[1730731199066,3.2078,2452.8,2452.6,0.40793]
[1730731199067,0.40794,2452.7,2452.6,0.40793]
[1730731199463,3.2078,2452.8,2452.3,0.4518]
[1730731199867,0.40794,2452.7,2452.6,0.40794]
[1730731200469,3.2078,2452.8,2452.3,0.4518]
[1730731200670,0.40797,2452.5,2452.4,0.40798]
[1730731201174,0.40797,2452.5,2452.0,1.02012]
[1730731201175,0.408,2452.4,2452.0,1.02012]
[1730731201374,0.408,2452.4,2451.4,1.02037]
[1730731201375,7.12013306,2452.1,2451.4,1.02037]
[1730731201581,3.2078,2452.1,2451.9,0.40805]
[1730731201784,3.2078,2452.1,2452.0,0.40805]
[1730731201975,41.20797,2452.5,2452.4,0.40798]
[1730731202170,0.40801,2452.3,2452.2,0.408]
[1730731202370,0.40802,2452.2,2452.1,0.84933]
[1730731202584,40.8,2452.5,2452.1,0.4413]
[1730731202585,0.40801,2452.3,2452.1,0.4413]
[1730731202779,0.40801,2452.3,2452.2,0.408]
[1730731203081,0.40802,2452.2,2452.1,0.84932]
[1730731203380,3.2078,2452.3,2452.1,0.4413]
[1730731203575,0.40802,2452.2,2452.1,0.84933]
[1730731203772,0.40802,2452.2,2452.1,0.4413]
[1730731203976,0.40802,2452.2,2451.8,3.40825273]
[1730731203977,0.40807,2451.9,2451.8,3.2078]
[1730731204179,3.2078,2452.0,2451.5,6.32534556]
[1730731204481,3.2078,2452.0,2451.6,1.47051697]
[1730731204689,3.2078,2452.0,2451.7,0.56540444]
[1730731204983,0.40809,2451.8,2451.7,0.40809]
[1730731205284,0.40809,2451.8,2451.7,0.97378006]
[1730731205472,3.2078,2452.0,2451.7,1.47107592]
[1730731205674,3.2078,2452.0,2451.8,0.97377006]
[1730731205675,0.40808,2451.9,2451.8,0.97377006]
[1730731205980,0.4386,2452.1,2451.9,0.40807]
[1730731206187,0.4386,2452.1,2452.0,0.97374006]
[1730731206188,0.84663,2452.1,2452.0,0.97374006]
[1730731206781,0.40803,2452.1,2452.0,1.47124803]
[1730731206980,0.40803,2452.2,2452.0,0.56569006]
[1730731207283,0.40803,2452.2,2452.1,0.56569006]
[1730731207476,0.40803,2452.2,2452.1,0.97372006]
[1730731207672,3.6467,2452.3,2452.2,0.40802]
[1730731207673,4.0547,2452.3,2452.2,0.40802]
[1730731207989,3.6467,2452.3,2452.2,0.97371006]
[1730731208177,4.0547,2452.3,2452.2,1.87950455]
[1730731208378,4.0547,2452.3,2452.2,0.97371006]
[1730731208591,4.0547,2452.3,2452.2,1.87994262]
[1730731208775,4.0547,2452.3,2452.2,0.97371006]
[1730731209082,4.0547,2452.3,2452.2,2.37879122]
[1730731209472,8.1323,2452.3,2452.2,2.37879122]
[1730731209672,8.1323,2452.3,2452.2,2.37908531]
[1730731209883,8.1323,2452.3,2452.2,1.4725608]
[1730731210277,8.1323,2452.3,2452.2,0.90619141]
[1730731212391,7.7243,2452.3,2451.5,1.06487856]
[1730731212683,0.4081,2451.7,2451.6,0.97488765]
[1730731212884,3.2078,2451.9,2451.7,0.40809]
[1730731212885,0.40809,2451.8,2451.7,0.40809]
[1730731213083,0.40809,2451.8,2451.7,0.56683203]
[1730731213277,0.40812,2451.6,2451.5,0.40811]
[1730731213474,0.40812,2451.6,2451.5,0.96817546]
[1730731214182,0.40812,2451.6,2451.5,0.96819546]
[1730731214683,4.66716,2452.2,2451.5,4.63926546]
[1730731214987,2.10665038,2452.7,2452.2,0.40802]
[1730731214988,0.8409,2452.3,2452.2,0.40802]
[1730731216075,0.40803,2452.2,2452.1,0.40803]
[1730731216280,0.40803,2452.2,2452.1,0.96817376]
[1730731216480,0.40803,2452.2,2452.1,0.56014376]
[1730731216781,0.40803,2452.2,2452.0,0.40804]
[1730731216782,0.40805,2452.1,2452.0,0.40804]
[1730731216981,0.40807,2451.9,2451.8,0.40807]
[1730731217185,3.2078,2452.2,2451.7,0.4456]
[1730731217186,4.22786,2452.2,2451.7,0.4456]
[1730731217387,3.2078,2452.2,2451.7,0.4456]
[1730731217692,0.40807,2451.9,2451.8,0.40807]
[1730731218293,0.40808,2451.9,2451.8,0.40808]
[1730731218487,0.40808,2451.9,2451.8,0.56032477]
[1730731218784,0.40808,2451.9,2451.8,0.96840477]
[1730731218991,4.37003306,2452.1,2451.8,0.56032477]
[1730731219198,0.40807,2451.9,2451.8,0.56032477]
[1730731219391,3.61587,2451.9,2451.8,0.56032477]
[1730731219784,0.4577,2452.1,2451.8,0.56032477]
[1730731219980,0.4577,2452.1,2451.9,0.40806]
[1730731219981,0.40806,2452.0,2451.9,0.40806]
[1730731220386,0.4577,2452.1,2452.0,0.40805]
[1730731220593,0.4577,2452.1,2451.6,3.2078]
[1730731220886,0.4577,2452.1,2451.6,1.02029]
[1730731221090,0.40804,2452.1,2452.0,0.40805]
[1730731221893,0.40807,2452.0,2451.9,0.40806]
[1730731222085,3.2078,2452.2,2451.5,2.5499055]
[1730731222282,0.4081,2451.8,2451.5,1.5295955]
[1730731222489,0.40812,2451.7,2451.6,0.40811]
[1730731222892,0.40812,2451.6,2451.5,0.40812]
[1730731223589,0.4314,2451.7,2451.3,1.0658955]
[1730731223892,0.4314,2451.7,2451.1,2.559991]
[1730731223893,0.40817,2451.3,2451.1,1.0658955]
[1730731224082,0.40817,2451.3,2451.2,0.40817]
[1730731224485,40.8,2451.3,2451.2,0.96896074]
[1730731225886,41.20817,2451.3,2451.2,0.96896074]
[1730731226188,41.20817,2451.3,2451.2,0.56079074]
[1730731226390,41.20817,2451.3,2451.2,0.40818]
[1730731226982,41.20817,2451.3,2450.9,2.5358655]
[1730731226983,40.8,2451.3,2450.9,1.46997]
[1730731227188,0.40819,2451.2,2451.1,0.40819]
[1730731227387,0.40822,2451.0,2450.9,0.85762]
[1730731227690,0.40822,2451.0,2450.9,1.41809553]
[1730731227893,0.40822,2451.0,2450.9,1.45723945]
[1730731228087,0.40822,2451.0,2450.9,0.56047553]
[1730731228590,0.4412,2451.1,2450.9,0.56047553]
[1730731228789,0.84941,2451.1,2451.0,0.40822]
[1730731228985,0.84941,2451.1,2450.8,0.40824]
[1730731228986,0.8494,2451.1,2450.8,0.40824]
[1730731229185,0.40822,2451.0,2450.7,1.0658955]
[1730731229391,0.40822,2451.0,2450.9,0.40823]
[1730731229692,0.84941,2451.1,2451.0,0.40822]
[1730731229890,0.40823,2451.0,2450.9,0.40822]
[1730731230888,0.40824,2450.9,2450.8,0.40824]
[1730731231088,0.40824,2450.9,2450.8,0.96834252]
[1730731231392,3.649,2451.1,2450.8,0.56010252]
[1730731231588,3.2078,2451.1,2451.0,0.40822]
[1730731231791,0.40816,2451.4,2451.3,0.40816]
[1730731231995,3.2078,2451.6,2451.2,0.40817]
[1730731231996,0.40817,2451.3,2451.2,0.40817]
[1730731232295,4.2281,2451.6,2451.1,0.4219]
[1730731232490,0.40817,2451.3,2451.2,0.40817]
[1730731232686,0.40818,2451.3,2451.2,0.40817]
[1730731233893,4.2281,2451.6,2451.1,0.4219]
[1730731233894,0.40815,2451.5,2451.4,0.40814]
[1730731234094,0.40816,2451.4,2451.3,0.40815]
[1730731235294,0.40816,2451.4,2451.1,0.4219]
[1730731235295,0.40815,2451.5,2451.4,0.40813]
[1730731235999,3.2078,2451.6,2451.2,1.02046]
[1730731236196,3.61592,2451.6,2451.5,0.40813]
[1730731236394,3.61592,2451.6,2451.1,0.4219]
[1730731236395,3.2078,2451.6,2451.1,0.4219]
[1730731236706,3.2078,2451.6,2451.4,0.40814]
[1730731236707,0.40815,2451.5,2451.4,0.40814]
[1730731236998,0.40817,2451.4,2451.3,0.40815]
[1730731237203,0.40818,2451.3,2451.2,0.40817]
[1730731237596,0.40816,2451.4,2451.3,0.40814]
[1730731238093,3.2078,2451.6,2451.4,0.40814]
[1730731238293,3.2078,2451.6,2451.1,0.4219]
[1730731238505,0.40817,2451.4,2451.3,0.40815]
[1730731238698,42.1055,2451.8,2451.7,0.4081]
[1730731238899,0.40812,2451.7,2451.6,0.4081]
[1730731239299,42.10549,2451.8,2451.7,0.4081]
[1730731239492,0.40811,2451.7,2451.6,0.4081]
[1730731239700,41.6974,2451.8,2451.3,3.2078]
[1730731239904,0.40815,2451.5,2451.4,0.40813]
[1730731240200,0.40815,2451.5,2451.3,3.2078]
[1730731240201,0.40816,2451.4,2451.3,0.40815]
[1730731240706,44.9052,2451.8,2451.4,0.40815]
[1730731240707,0.40814,2451.5,2451.4,0.40815]
[1730731241094,3.61594,2451.5,2451.4,0.40815]
[1730731241295,3.2078,2451.5,2451.1,1.4424]
[1730731241608,0.40818,2451.3,2451.2,0.40817]
[1730731242308,0.4082,2451.2,2451.1,0.40819]
[1730731242802,0.4082,2451.1,2451.0,0.83991]
[1730731243003,0.4519,2451.3,2451.0,0.56004379]
[1730731243306,0.4519,2451.3,2450.9,3.2078]
[1730731243307,0.4438,2451.2,2450.9,3.2078]
[1730731243503,0.40822,2451.1,2451.0,0.40821]
[1730731243694,0.40822,2451.0,2450.9,3.61603]
[1730731243899,0.40821,2451.1,2451.0,0.4082]
[1730731244503,0.4438,2451.2,2451.1,0.4082]
[1730731244910,0.85198,2451.2,2451.1,0.4082]
[1730731245315,0.40822,2451.1,2451.0,0.4082]
[1730731245515,0.40822,2451.1,2451.0,0.96871421]
[1730731245716,0.852,2451.2,2451.1,0.4082]
[1730731246220,0.4438,2451.2,2451.1,0.4082]
[1730731246516,0.4475,2451.6,2451.2,1.02046]
[1730731246825,0.85562,2451.6,2451.5,0.40813]
[1730731248420,0.85562,2451.6,2451.4,0.40813]
[1730731248421,0.40815,2451.5,2451.4,0.40813]
[1730731248716,0.4475,2451.6,2451.5,0.40813]
[1730731249021,40.8,2451.8,2451.7,0.4081]
[1730731249314,0.4284,2452.1,2451.7,5.04703499]
[1730731249522,0.4284,2452.1,2451.9,0.40805]
[1730731249523,0.40807,2452.0,2451.9,0.40805]
[1730731249816,41.20807,2452.0,2451.9,0.40805]
[1730731250017,41.20807,2452.0,2451.9,0.56049914]
[1730731250316,41.20807,2452.0,2451.6,4.6818055]
[1730731250317,0.4081,2451.7,2451.6,4.6818055]
[1730731250516,0.4081,2451.7,2451.6,4.66515466]
[1730731250717,0.4081,2451.7,2451.3,1.0658955]
[1730731250718,5.09947,2451.7,2451.3,1.0658955]
[1730731250926,11.93536025,2451.6,2451.1,0.40819]
[1730731251214,11.93536025,2451.6,2450.9,3.6294]
[1730731251215,1.02045,2451.3,2450.9,3.6294]
[1730731251421,0.40821,2451.1,2451.0,0.96882324]
[1730731251721,0.40818,2451.3,2451.2,0.40817]
[1730731252024,0.4381,2451.5,2451.4,0.40815]
[1730731252218,3.651,2451.6,2451.2,3.2078]
[1730731252422,4.05913,2451.6,2451.5,0.40813]
[1730731252717,44.85913,2451.6,2451.5,0.40813]
[1730731252923,44.41593,2451.6,2451.5,0.40813]
[1730731253121,41.20813,2451.6,2451.5,0.9687489]
[1730731253311,40.8,2451.6,2451.4,0.4216]
[1730731253513,0.40813,2451.5,2451.4,0.82973]
[1730731253709,0.40813,2451.5,2451.4,1.39043291]
[1730731254127,40.8,2451.6,2451.4,0.98230291]
[1730731254419,41.20813,2451.6,2451.5,0.40813]
[1730731254623,40.8,2451.6,2451.5,0.96893835]
[1730731254820,0.40807,2452.0,2451.9,0.40806]
[1730731255226,3.61584,2452.1,2452.0,0.40805]
[1730731255426,3.61584,2452.1,2451.9,0.56080495]
[1730731255427,0.40806,2452.0,2451.9,0.40806]
[1730731255623,0.40806,2452.0,2451.9,1.38998575]
[1730731255814,0.4369,2452.2,2451.9,0.98192575]
[1730731256124,0.40803,2452.1,2452.0,0.96883557]
[1730731256312,0.4369,2452.2,2452.1,0.40803]
[1730731256518,0.40792,2452.8,2452.5,0.40797]
[1730731256721,0.40793,2452.8,2452.7,0.40793]
[1730731256927,0.40794,2452.7,2452.6,0.40794]
[1730731257120,0.40794,2452.7,2452.6,0.96865349]
[1730731257315,0.40795,2452.7,2452.6,0.40795]
[1730731257716,0.40796,2452.6,2452.5,0.40795]
[1730731257926,0.40796,2452.6,2452.5,0.9684233]
[1730731258118,1.01977,2452.9,2452.4,0.4203]
[1730731258323,1.01983,2452.8,2452.4,0.4203]
[1730731258518,0.40797,2452.5,2452.4,0.4203]
[1730731258821,44.0078,2452.7,2452.4,0.4203]
[1730731259132,2.99053036,2453.6,2452.5,21.75341789]
[1730731259422,40.8,2453.5,2453.1,1.01965]
[1730731259620,40.8,2453.5,2453.3,0.40782]
[1730731259822,40.8,2453.5,2453.4,0.40782]
[1730731260529,40.8,2453.5,2453.4,0.96742237]
[1730731260923,0.4502,2454.0,2453.8,0.40775]
[1730731261230,0.40769,2454.2,2454.0,0.40771]
[1730731261432,4.068,2454.3,2453.9,0.40773]
[1730731261433,40.8,2454.1,2453.9,0.40773]
[1730731261633,40.8,2454.1,2454.0,0.40772]
[1730731262322,40.8,2454.1,2453.8,0.883]
[1730731262526,40.8,2454.1,2454.0,0.40772]
[1730731262729,40.8,2454.1,2454.0,4.48292]
[1730731264026,40.8,2454.1,2454.0,0.40772]
[1730731264233,40.8,2454.1,2454.0,4.48292]
[1730731264434,40.8,2454.1,2454.0,0.40772]
[1730731264731,40.8,2454.1,2454.0,4.48292]
[1730731264940,40.8,2454.1,2454.0,0.40772]
[1730731265533,40.8,2454.1,2453.9,0.40773]
[1730731265727,40.8,2454.1,2453.8,0.883]
[1730731265933,40.8,2454.1,2454.0,0.40772]
[1730731266434,40.8,2454.1,2454.0,7.69072]
[1730731266838,3.2078,2454.6,2454.0,11.60719877]
[1730731267139,0.4501,2454.7,2454.6,0.40762]
[1730731267442,3.2078,2455.3,2454.5,3.91647877]
[1730731267641,0.40752,2455.2,2454.6,0.8548]
[1730731267937,0.85539,2455.4,2454.8,3.91647877]
[1730731268132,0.4479,2455.4,2454.9,3.2078]
[1730731268328,0.4479,2455.4,2454.7,0.4401]
[1730731268329,40.8,2455.9,2455.3,7.12427877]
[1730731268534,40.8,2455.9,2455.7,0.40743]
[1730731268735,40.8,2455.9,2455.4,0.4331]
[1730731268940,40.8,2455.9,2455.7,0.40743]
[1730731269330,41.2074,2455.9,2455.7,0.40743]
[1730731269636,41.2074,2455.9,2455.4,0.4331]
[1730731269637,40.8,2455.9,2455.4,0.4331]
[1730731269842,41.20741,2455.9,2455.5,0.40747]
[1730731270033,40.8,2455.9,2455.8,0.40742]
[1730731270227,40.8,2455.9,2455.7,0.40742]
[1730731270531,40.8,2455.9,2455.7,0.40743]
[1730731270731,40.8,2455.9,2455.4,3.6409]
[1730731270939,40.8,2455.9,2455.6,0.40744]
[1730731271241,0.40741,2455.9,2455.6,0.40744]
[1730731271538,3.2078,2456.2,2455.4,3.6409]
[1730731271740,0.4074,2456.0,2455.7,0.40743]
[1730731272046,0.4479,2456.6,2455.9,3.91647877]
[1730731272235,0.4479,2456.6,2455.5,8.68681679]
[1730731272236,40.8,2456.6,2456.3,3.91647877]
[1730731272437,40.8,2456.6,2456.5,0.4073]
[1730731272641,0.40728,2456.7,2456.4,0.40731]
[1730731272833,3.2078,2456.8,2456.3,7.12427877]
[1730731273040,40.8,2456.7,2456.3,7.12427877]
[1730731273234,40.8,2456.7,2456.5,0.4073]
[1730731273434,40.8,2456.7,2456.3,7.12427877]
[1730731273836,0.40732,2456.4,2456.0,0.40738]
[1730731274029,3.2078,2456.5,2455.8,7.55047877]
[1730731274539,0.40735,2456.3,2455.9,0.40739]
[1730731274736,3.2078,2456.5,2456.1,3.91647877]
[1730731275128,40.8,2456.7,2456.1,7.12427877]
[1730731275333,40.8,2456.7,2456.6,0.40729]
[1730731275542,40.8,2456.7,2456.3,3.91647877]
[1730731275739,40.8,2456.7,2456.4,3.2078]
[1730731275929,40.8,2456.7,2456.6,0.40729]
[1730731276241,4.03671,2457.1,2456.8,0.40724]
[1730731276440,0.40723,2457.0,2456.6,3.91647877]